Cogmind - Beta 11.1 @@@ ROGUE MODE // 2022.05.27 @ 01:15:12 Player: Jezoensis Result: Destroyed by D-53 Grenadier with Mini Grenade Launcher Performance ------------- Evolutions (0) 0 Regions Visited (2) 400 Robots Destroyed (12) 60 Value Destroyed (241) 241 Prototype IDs (1) 20 Alien Tech Used (0) 0 Bonus (0) 0 TOTAL SCORE: 721 Bonus ------- None Cogmind --------- Core Integrity 0/250 Matter 170/300 Energy 280/280 System Corruption 0% Temperature Cool (0) Movement Treading (240) Ox1 Location -10/Mines Parts ------- > --- POWER (1) -------- Cooled Ion Engine > --- PROPULSION (2) --- Light Treads Compact Wheel > --- UTILITY (2) ------ Improved Heat Sink Large Storage Unit > --- WEAPON (2) ------- Autogun Autogun > --- INVENTORY (15) --- Cooled Ion Engine Light Treads Light Treads Wheel Wheel Cooling System Improved Terrain Scanner Terrain Scan Processor Medium Laser Autogun Autogun Mini Grenade Launcher Mining Laser Peak State ------------ > --- POWER ------------ Cooled Ion Engine > --- PROPULSION ------- Wheel Wheel > --- UTILITY ---------- Huge Storage Unit Improved Terrain Scanner > --- WEAPON ----------- Autogun Autogun > --- INVENTORY -------- Cooled Ion Engine Cooled Ion Engine Light Nuclear Core Light Treads Light Treads Light Treads Wheel Wheel Heat Sink Improved Heat Sink Cooling System Medium Storage Unit Medium Laser Small Laser Autogun Autogun Mini Grenade Launcher Mining Laser [Rating: 16] Favorites ----------- Power Cooled Ion Engine Engine Cooled Ion Engine Propulsion Wheel Treads Light Treads Wheel Wheel Utility Improved Terrain Scanner Device Improved Terrain Scanner Storage Huge Storage Unit Weapon Autogun Energy Gun Medium Laser Ballistic Gun Autogun Launcher Mini Grenade Launcher Build | -11 -10 -10 ------- Run | Scr Mat Min Slots Evolved . | . . . Power . | . . . Propulsion . | . . . Utility . | . . . Weapon . | . . . Parts Attached 24 | 7 14 3 Power 3 | 1 2 . Engine 3 | 1 2 . Core . | . . . Reactor . | . . . Propulsion 6 | 2 2 2 Treads 1 | . . 1 Leg . | . . . Wheel 5 | 2 2 1 Hover . | . . . Flight . | . . . Utility 9 | 2 6 1 Device 6 | 1 4 1 Storage 3 | 1 2 . Processor . | . . . Hackware . | . . . Protection . | . . . Artifact . | . . . Weapon 6 | 2 4 . Energy Gun 1 | 1 . . Energy Cannon . | . . . Ballistic Gun 4 | 1 3 . Ballistic Cannon . | . . . Launcher 1 | . 1 . Special Weapon . | . . . Impact Weapon . | . . . Slashing Weapon . | . . . Piercing Weapon . | . . . Special Melee Weapon . | . . . Unidentified Prototypes 1 | . 1 . Parts Lost 2 | . 1 1 Power . | . . . Propulsion 2 | . 1 1 Utility . | . . . Weapon . | . . . Highest Loss Streak 1 | . 1 1 To Critical Strikes . | . . . Average Slot Usage (%) 99 | . 99 100 Engine 14 | . 14 14 Wheel 27 | . 27 26 Device 14 | . 14 14 Storage 14 | . 14 14 Energy Gun 4 | . 5 . Ballistic Gun 23 | . 22 28 Naked Turns . | . . . Heaviest Build 96 | 13 96 35 Greatest Support 26 | 20 26 26 Greatest Overweight (x) 4 | . 4 2 Average Overweight (x) 1 | . 1 1 Largest Inventory Capacity 25 | 8 25 15 Average Capacity 17 | 7 19 15 Most Carried 22 | 7 22 14 Average Carried 13 | 4 14 13 Final Capacity 15 | 8 15 15 Final Carried 15 | 7 15 13 Class Distribution -------------------- 100% | Mutant Dominant Class ---------------- Mutant | -10/Materials Mutant | -10/Mines Resources | -11 -10 -10 ----------- Run | Scr Mat Min Matter Collected 571 | 285 286 . Remotely . | . . . Salvage Created 346 | 50 296 . Parts 34 | 10 24 . Haulers Intercepted 1 | . 1 . Recyclers Shooed 1 | 1 . . Parts Field Recycled . | . . . Retrieved Matter . | . . . Parts Self-Destructed . | . . . Prevented . | . . . Kills | -11 -10 -10 ------- Run | Scr Mat Min Combat Hostiles Destroyed 5 | . 5 . Guns 3 | . 3 . AOE 2 | . 2 . Classes Destroyed 6 | 1 5 . Worker 1 | . 1 . Builder 1 | . 1 . Tunneler 3 | 3 . . Hauler 1 | . 1 . Watcher 1 | . 1 . Grunt 5 | . 5 . Best Kill Streak 3 | 3 2 . Combat Bots Only 2 | . 2 . Max Kills in Single Turn 2 | 1 2 . Gunslinging 1 | . 1 . Exploded 1 | . 1 . Melee . | . . . Uniques/NPCs Destroyed . | . . . Combat | -11 -10 -10 -------- Run | Scr Mat Min Damage Taken 711 | . 388 323 Core 251 | . 88 163 Absorbed by Shields . | . . . Core Remaining (%) 100 | 100 . . Volleys Fired 48 | 10 36 2 Largest 2 | 2 2 2 Hottest 70 | 70 70 46 Shots Fired 96 | 20 72 4 Gun 94 | 20 70 4 Cannon . | . . . Launcher 2 | . 2 . Special . | . . . Kinetic 69 | 10 55 4 Thermal 25 | 10 15 . Explosive 2 | . 2 . Electromagnetic . | . . . Robot Hit Streak 13 | 3 13 1 Robot Miss Streak 3 | 2 3 1 Penetration Max . | . . . Secondary Targets 1 | . 1 . Max Gunslinging Chain 1 | . 1 . Shots Hit Robots 54 | 11 41 2 Core Hits 18 | 4 14 . Critical Kills . | . . . Critical Parts Destroyed . | . . . Critical Strikes . | . . . Melee Attacks . | . . . Impact . | . . . Slashing . | . . . Piercing . | . . . Sneak Attacks . | . . . Combat Hostiles . | . . . Follow-up Attacks . | . . . Damage Inflicted 889 | 161 699 29 Guns 755 | 161 565 29 Cannons . | . . . Explosions 134 | . 134 . Melee . | . . . Ramming . | . . . Kinetic 607 | 87 491 29 Thermal 148 | 74 74 . Explosive 134 | . 134 . Electromagnetic . | . . . Impact . | . . . Slashing . | . . . Piercing . | . . . Highest Corruption . | . . . Average Corruption . | . . . Corruption Purged . | . . . Corruption Blocked . | . . . Overload Shots . | . . . Overflow Damage . | . . . Projectiles . | . . . Explosions . | . . . Melee . | . . . Knockbacks . | . . . Impact . | . . . Kinetic . | . . . Secondary . | . . . Self-Inflicted Damage . | . . . Shots . | . . . Rammed . | . . . Targets Rammed . | . . . Kicked . | . . . Crushed . | . . . Highest Temperature 54 | 54 47 . Average Temperature 15 | 24 9 . Received Heat Transfer 213 | . 213 . Siege Activations . | . . . Robots Corrupted . | . . . Combat Hostiles . | . . . Parts Fried . | . . . Impact Corruptions . | . . . Robots Melted . | . . . Combat Hostiles . | . . . Parts Melted . | . . . Heat Transferred 444 | 222 222 . Parts Sabotaged . | . . . Parts Stolen . | . . . Parts Stripped . | . . . Power Chain Reactions . | . . . Missiles Intercepted . | . . . Alert | -11 -10 -10 ------- Run | Scr Mat Min Peak Influence 224 | 15 224 46 Initial 46 | . 9 46 Average 66 | 6 76 45 Maximum Alert Level 1 | . 1 . Low Security (%) 91 | 100 89 100 Level 1 8 | . 10 . Level 2 . | . . . Level 3 . | . . . Level 4 . | . . . Level 5 . | . . . High Security . | . . . Max Security . | . . . Squads Dispatched 3 | . 3 . Investigation 1 | . 1 . Extermination . | . . . Reinforcement 2 | . 2 . Assault . | . . . Garrison . | . . . Intercept . | . . . Searches Triggered . | . . . Construction Impeded . | . . . Haulers Reinforced . | . . . Active Scanning Responses . | . . . Cargo Convoy Interrupts . | . . . Stealth | -11 -10 -10 --------- Run | Scr Mat Min Distress Signals 1 | . 1 . Communications Jammed . | . . . Distress Signals . | . . . Times Spotted 21 | . 17 4 Peak Tracking Total 6 | . 6 6 Tactical Retreats 3 | . 3 . Traps | -11 -10 -10 ------- Run | Scr Mat Min Traps Triggered . | . . . Indirectly . | . . . Trap Hack Attempts . | . . . Triggered . | . . . Disarmed . | . . . Reprogrammed . | . . . Reused . | . . . Traps Extracted . | . . . Installed . | . . . Triggered . | . . . Machines | -11 -10 -10 ---------- Run | Scr Mat Min Machines Disabled . | . . . Max in Single Turn . | . . . Machines Sabotaged . | . . . Garrisons Compromised . | . . . Overloaded Fab Kills . | . . . Hacking | -11 -10 -10 --------- Run | Scr Mat Min Machines Accessed 6 | . 6 . Terminals 5 | . 5 . Fabricators . | . . . Repair Stations . | . . . Recycling Units 1 | . 1 . Scanalyzers . | . . . Garrison Access . | . . . Total Hacks 16 | . 16 . Successful 7 | . 7 . Failed 9 | . 9 . Catastrophic . | . . . Database Lockouts . | . . . Manual 14 | . 14 . Terminals 15 | . 15 . Fabricators . | . . . Repair Stations . | . . . Recycling Units 1 | . 1 . Scanalyzers . | . . . Garrison Access . | . . . Terminal Hacks 5 | . 5 . Robot Analysis 3 | . 3 . Terminal Index 1 | . 1 . Locate Traps 1 | . 1 . Fabricator Hacks . | . . . Repair Station Hacks . | . . . Recycling Unit Hacks . | . . . Scanalyzer . | . . . Garrison Access Hacks . | . . . Unauthorized Hacks 2 | . 2 . Terminals 1 | . 1 . Botnet 1 | . 1 . Fabricators . | . . . Repair Stations . | . . . Recycling Units 1 | . 1 . Recyclers 1 | . 1 . Scanalyzers . | . . . Garrison Access . | . . . Data Cores Recovered . | . . . Used . | . . . Hacking Detections 5 | . 5 . Full Trace Events 1 | . 1 . Feedback Events . | . . . Feedback Blocked . | . . . Robot Schematics Acquired . | . . . Robots Built . | . . . Authchips . | . . . Time . | . . . Total Robot Build Rating . | . . . Part Schematics Acquired . | . . . Parts Built . | . . . Authchips . | . . . Time . | . . . Total Part Build Rating . | . . . Parts Repaired . | . . . Time . | . . . Parts Recycled . | . . . Recycled Matter . | . . . Retrieved Matter . | . . . Retrieved Components . | . . . Parts Scanalyzed . | . . . Part Schematics Acquired . | . . . Parts Damaged . | . . . Bothacking | -11 -10 -10 ------------ Run | Scr Mat Min Used RIF Installer . | . . . Robots Hacked . | . . . Non-combat . | . . . Combat . | . . . Robot Hacks Applied . | . . . Relay Couplers Released . | . . . Fabnet Peak Effective % . | . . . Robots Rewired . | . . . Allies Hacked . | . . . Hacks Repelled . | . . . Allies | -11 -10 -10 -------- Run | Scr Mat Min Total Allies . | . . . Largest Group . | . . . Highest-Rated Group . | . . . Highest-Rated Ally . | . . . Total Orders . | . . . Ally Attacks . | . . . Total Damage . | . . . Kills . | . . . Allies Corrupted . | . . . Allies Melted . | . . . Intel | -11 -10 -10 ------- Run | Scr Mat Min Robot Analysis Total 3 | . 3 . Derelict Logs Recovered . | . . . Drone Launches . | . . . Drone Recoveries . | . . . Exploration | -11 -10 -10 ------------- Run | Scr Mat Min Turns Passed 803 | 82 637 84 Spaces Moved 550 | 44 436 70 Core 12 | 12 . . Treads . | . . . Legs . | . . . Wheels 538 | 32 436 70 Hover . | . . . Flight . | . . . Fastest Speed 50 | 50 80 105 Average Speed 108 | 71 113 105 Slowest Speed 140 | 80 140 130 Overloaded Moves . | . . . Propulsion Burnouts . | . . . Robots Hopped . | . . . Cave-ins Triggered . | . . . Exploration Rate (%) 31 | 4 65 24 Regions Visited 2 Branch Regions 1 Pre-discovered Areas . | . . . Known Exits Taken . | . . . Unknown Exits Taken 2 | 1 1 . Scrap Searched . | . . . Spaces Dug . | . . . Terrain Destroyed 18 | . 18 . Melee . | . . . Projectile . | . . . AOE 18 | . 18 . Terrain Rammed . | . . . Walls Destroyed . | . . . Machines Disabled . | . . . Actions | -11 -10 -10 --------- Run | Scr Mat Min Total 665 | 72 516 77 Wait 2 | . . 2 Move 548 | 43 435 70 Hop . | . . . Pick Up 28 | 11 17 . Fast Attach 4 | 4 . . Attach 5 | 3 . 2 Detach . | . . . Swap 15 | . 14 1 Drop 15 | 1 14 . Fire 48 | 10 36 2 Melee . | . . . Ram . | . . . Kick . | . . . Crush . | . . . Escape Stasis . | . . . Rewire . | . . . Trap . | . . . Miscellaneous . | . . . Route ------- -11/Scrapyard -10/Materials (discovered 3 exits: [*Mat x2] / [*Min]) -10/Mines History --------- Turn | Location | Event 13 | -11/Scrapyard | Discovered new exit (range 15) 83 | -11/Scrapyard | Entered Materials 252 | -10/Materials | Discovered new exit (range 6) 333 | -10/Materials | Build established: Mutant 379 | -10/Materials | Discovered new exit (range 13) 495 | -10/Materials | Discovered new exit (range 8) 720 | -10/Materials | Entered Mines 730 | -10/Mines | Assembled infested the area 798 | -10/Mines | Core integrity fell below 50% 804 | -10/Mines | Core integrity fell below 20% 804 | -10/Mines | Destroyed by D-53 Grenadier with Mini Grenade Launcher Last Messages --------------- S-10 Pest Tier: 1 S-series swarmers are small with a weak and exposed core, but as such are quick to manufacture and can quickly overwhelm targets with greater numbers and superior speed. The light assault rifle was designed specifically for the S-10 Pest, giving it respectable firepower at a low weight for maintaining high flight speeds. Swarmer squads are particularly susceptible to explosives. 00623_ ALERT: Suspicious activity at Terminal M008. Dispatching Investigation squad. 00678_ Acquired 29 matter. 00718_ Wheel destroyed. LOCATION=UNKNOWN GOAL=ESCAPE 00730_ ALERT: Infestation in the mines, dispatching Demolisher response squad. 00743_ as-23411 destroyed. 00797_ Wheel destroyed. 00799_ U-05 Engineer destroyed. 00800_ The unstable cave ceiling collapses. Map ----- +----------------------------------------------------+ | | | | | | | | | | | | | ?????????????????????????#???????????????????????? | | ?????????????????????????????????????????????????? | | ????#????????####????????????????????????????????? | | ???????????### ##???????????????????????????????? | | ????????????# #???????????????????????????????? | | ?#####??????# ##??????????????????????????????? | | ## ##????## ##?????????????????????????????? | | ###### ##????????????????????????????? | | ## #????????????????????????????? | | #???????????????????#????????? | | ## ##????????????????????????????? | | #### ##?????????????#???????????????? | | ???##### ##?????????????????????????????? | | ???????## ####??????????????????????????? | | ??????#?# ## ###############????????????? | | ????????# #### """ # ? ????????????? | | ????????## ##??# """ # ### #########????? | | ???????#?####???# """ ## ## ## ## | | ????????????????# ## ## ? | | ????????????????# @ #????? | | ??#????????????## r #????? | | ???????????????# r % #### # #????? | | ???????????????# ##??# # #????? | | ???????????????## !%# ###???# ########????? | | ????????????????# ## #?????# ???????????? | | ????????????????# dd# ????? ???????????? | | ????????????????# #u# k ????# ???????????? | | ??????????????? k #???## ??????????#? | | ??????????????### #?????# ??????????? | | ????????????????### # # #??????#??????????? | | ??????????????????# ?? # ?????????????????? | | ??????????????????# ?? # ###?????????????????? | | ???????????????????# ?? #????????????????????? | | ???????????????????????? ##????????????????????? | | ???????????????????????? #??????????????????????? | | ?????????????????????????????????????????????????? | | ?????????????????????????????????????????????????? | | ?????????????????????????????????????????????????? | | ?????????????????????????????????????????????????? | | ?????????????????????????????????????????????????? | | ?????????????????????????????????????????????????? | | ?????????????????????????????????????????????????? | | ?????????????????????????????????????????????????? | | ?????????????????????????????????????????????????? | +----------------------------------------------------+ Best States ------------- Heat Dissipation 47 Energy Generation 14 Energy Capacity 280 Matter Stores 285 Matter Capacity 300 Sight Range 16 Terrain Scan Range 16 Terrain Scan Density 10 Evasion (%) 50 Item Schematics ----------------- None Robot Schematics ------------------ None Fabricated ------------ Nothing Alien Tech Used ----------------- None Achievements -------------- None Challenges ------------ None Game ------ Seed AuthchipElectronEdition Manual? 0 Play Time 00:13:21 Cumulative 656.3 hours Start 2022.05.27 @ 01:01:47 End 2022.05.27 @ 01:15:12 Sessions 1 Manual Loads 0 Difficulty Rogue Special Mode None Game No. 343 Rogue 216 Adventurer 125 Explorer 2 Win Type - Total 71 Types 62/3/3/1/1/0/0/0/1 Lore% 76 Gallery% 87 Achievement% 71 Wizard Run 0 Options --------- ASCII 0 Keyboard 1 Movement Numpad Keybinds 0 Fullscreen 1 Font 36/TerminusFine Map View 76x50 Tactical HUD 1 Map Filters NONE Filters NONE Steam 1 RUN: f0b22ec2-be88-419f-a302-fea887ac47f8